Workbook

Sheet FORM 1.00
E1: ES FORM 1.00
A3: DUKE ENERGY KENTUCKY, INC.
A4: ENVIRONMENTAL SURCHARGE REPORT
A6: Summary of Jurisdictional E(m), Jurisdictional R(m) and Environmental Surcharge Billing Factors
A8: For the Expense Month of November 2019
A13: Residential (Total Revenue)
A15: Jurisdictional E(m) | C15: ES Form 1.10, Line 15 | D15: = | E15: ='FORM 1.10'!H47 -> 579757
A17: Jurisdictional R(m) | C17: ES Form 1.10, Line 16 | D17: = | E17: ='FORM 1.10'!H50 -> 10763176
A19: Environmental Surcharge Billing Factor | C19: ES Form 1.10, Line 17 | D19: = | E19: ='FORM 1.10'!H53 -> 0.0539
A22: Non-Residential (Net Revenue)
A24: Jurisdictional E(m) | C24: ES Form 1.10, Line 15 | D24: = | E24: ='FORM 1.10'!I47 -> 889471
A26: Jurisdictional R(m) | C26: ES Form 1.10, Line 16 | E26: ='FORM 1.10'!I51 -> 11078631
A28: Environmental Surcharge Billing Factor | C28: ES Form 1.10, Line 17 | D28: = | E28: ='FORM 1.10'!I53 -> 0.0803
A33: Effective Date for Billing: | C33: 2020-01-02
A36: Submitted by: | C36: Theodore H. Czupik Jr.
A39: Title: | C39: Rates & Regulatory Strategy Manager
A42: Date Submitted: | C42: 2019-12-16

Sheet FORM 1.10
I1: ES FORM 1.10
B3: =Company -> DUKE ENERGY KENTUCKY, INC.
B4: =Title -> ENVIRONMENTAL SURCHARGE REPORT
B6: Calculation of Current Month Environmental Surcharge Factors
B8: For the Expense Month of November 2019
B11: Line | H11: Environmental
B12: No. | D12: E(m) = RORB + OE - EAS + Prior Period Adjustment + (Over)/Under Recovery | F12: Source | H12: Compliance Plans
B14: =MAX(B$13:B13)+1 -> 1 | D14: Environmental Compliance Rate Base (RB) | F14: ES Form 2.00 | H14: ='FORM 2.00'!F28 -> 59187736
B16: =MAX(B$13:B15)+1 -> 2 | D16: RB ÷ 12 months | F16: (1) ÷ 12 | H16: =ROUND(H14/12,0) -> 4932311
B18: =MAX(B$13:B17)+1 -> 3 | D18: Pretax Rate of Return (ROR) | F18: ES Form 1.20 | H18: ='FORM 1.20'!G16 -> 0.08446
B20: =MAX(B$13:B19)+1 -> 4 | D20: Return on the Environmental Compliance Rate Base (RORB) | F20: (2) x (3) | H20: =ROUND(H16*H18,0) -> 416583
B22: =MAX(B$13:B21)+1 -> 5 | D22: Environmental Operating Expenses (OE) | F22: ES Form 2.00 | G22: + | H22: ='FORM 2.00'!F38 -> 858672
B24: =MAX(B$13:B23)+1 -> 6 | D24: Less: Proceeds from Emission Allowance Sales (EAS) | F24: ES Form 2.00 | G24: - | H24: ='FORM 2.00'!F45 -> 0
B26: =MAX(B$13:B25)+1 -> 7 | D26: Sub-Total E(m) | F26: (4) + (5) - (6) | H26: =H20+H22-H24 -> 1275255
B28: =MAX(B$13:B27)+1 -> 8 | D28: Jurisdictional Allocation Ratio for Expense Month | F28: Line 18 | H28: =I58 -> 0.9763
B30: =MAX(B$13:B29)+1 -> 9 | D30: Jurisdictional E(m) | F30: (7) x (8) | H30: =ROUND(H26*H28,0) -> 1245031
B32: =MAX(B$13:B31)+1 -> 10 | D32: Prior Period Adjustment (if necessary) | F32: (A) | G32: + | H32: 0
B34: =MAX(B$13:B33)+1 -> 11 | D34: Adjustment for (Over)/Under Recovery | F34: ES Form 2.00 | G34: + | H34: ='FORM 2.00'!F51 -> 224197
B36: =MAX(B$13:B35)+1 -> 12 | D36: Total Adjusted Jurisdictional E(m) | F36: (9) + (10) + (11) | H36: =H30+H32+H34 -> 1469228
B38: 13 | D38: Jurisdictional E(m) to be Recovered in Rider PSM | F38: (7) - (9) | H38: =H26-H30 -> 30224
B40: Calculation of Environmental Surcharge Billing Factors
H42: Residential | I42: Non-Residential
H43: (Total Revenue) | I43: (Net Revenue)
B45: =MAX(B$13:B41)+1 -> 14 | D45: Revenues as a Percentage of 12 Month Average Total Revenues | F45: ES Form 3.00 | H45: ='FORM 3.00'!G36 -> 0.3946 | I45: ='FORM 3.00'!G64 -> 0.6054
B47: =MAX(B$13:B46)+1 -> 15 | D47: Adjusted Jurisdictional E(m) - Allocated | F47: (12) x (14) | H47: =ROUND(H36*H45,0) -> 579757 | I47: =H36-H47 -> 889471
B49: =MAX(B$13:B48)+1 -> 16 | D49: R(m)
D50: Residential R(m) = Average Total Revenue (Total Revenue excluding ESM Revenue) | F50: ES Form 3.00 | H50: ='FORM 3.00'!G32 -> 10763176
D51: Non-Residential R(m) = Average Net Revenue (Total Revenue excluding ESM Revenue, Base Fuel and FAC Revenue) | F51: ES Form 3.00 | I51: ='FORM 3.00'!H60 -> 11078631
B53: =MAX(B$13:B52)+1 -> 17 | D53: Jurisdictional E(m) / R(m) | F53: (15) ÷ (16) | H53: =IF(H50=0,0,ROUND(H47/H50,4)) -> 0.0539 | I53: =IF(I51=0,0,ROUND(I47/I51,4)) -> 0.0803
B56: Calculation of Jurisdictional Allocation Ratio - 12 Month Average
B58: =MAX(B$13:B57)+1 -> 18 | D58: Retail Revenue | F58: ES Form 3.00 | H58: ='FORM 3.00'!G34 -> 27274326 | I58: =ROUND(H58/$H$62,4) -> 0.9763
B60: =MAX(B$13:B59)+1 -> 19 | D60: Sales for Resale | F60: Company Records | H60: 662008 | I60: =I62-I58 -> 0.0237
B62: =MAX(B$13:B61)+1 -> 20 | D62: Total Revenue | H62: =H58+H60 -> 27936334 | I62: =ROUND(H62/$H$62,4) -> 1
D66: Note: (A) Amounts determined by the Commission during six-month and two-year reviews.

Sheet FORM 1.20
G1: ES FORM 1.20
A3: =Company -> DUKE ENERGY KENTUCKY, INC.
A4: =Title -> ENVIRONMENTAL SURCHARGE REPORT
A6: Cost of Capital
A9: Line | E9: Weighted | F9: Gross up for | G9: Pre-Tax
A10: No. | B10: Capital Structure | C10: Ratio | D10: Cost | E10: Cost | F10: Tax Rate | G10: Rate of Return
E11: (A) | F11: (B) | G11: (A)x(B)
A13: 1 | B13: Short-term Debt | C13: 0.09772 | D13: 0.03083 | E13: =ROUND(C13*D13,5) -> 0.00301 | G13: =ROUND(E13,5) -> 0.00301
A14: =A13+1 -> 2 | B14: Long-term Debt | C14: 0.40977 | D14: 0.04243 | E14: =ROUND(C14*D14,5) -> 0.01739 | G14: =ROUND(E14,5) -> 0.01739
A15: =A14+1 -> 3 | B15: Common Equity | C15: 0.49251 | D15: 0.09725 | E15: =ROUND(C15*D15,5) -> 0.0479 | F15: 1.3373044 | G15: =ROUND(F15*E15,5) -> 0.06406
A16: 4 | B16: Total | C16: =SUM(C13:C15) -> 1 | E16: =SUM(E13:E15) -> 0.0683 | G16: =SUM(G13:G15) -> 0.08446
B20: Note: Capital structure, cost of debt and tax rate gross-up factor as approved in Case No. 2017-00321.
B21: These rates are to remain constant until the Commission sets base rates in Duke Kentucky's next
B22: base rate case proceeding.

Sheet FORM 2.00
F1: ES FORM 2.00
A3: =Company -> DUKE ENERGY KENTUCKY, INC.
A4: =Title -> ENVIRONMENTAL SURCHARGE REPORT
A6: Revenue Requirement of Environmental Compliance Costs
A8: For the Expense Month of November 2019
A11: Line
A12: No. | C12: Determination of Environmental Compliance Rate Base (RB) | D12: Source | F12: Amount
A14: =MAX(A13:A$13)+1 -> 1 | C14: Eligible Environmental Compliance Plant (Gross Plant) | D14: ES Form 2.10 | F14: ='FORM 2.10'!D51 -> 41587732
A15: =MAX(A$13:A14)+1 -> 2 | C15: Eligible Environmental Compliance CWIP Excluding AFUDC | D15: ES Form 2.10 | F15: ='FORM 2.10'!G51 -> 21961993
A16: =MAX(A$13:A15)+1 -> 3 | C16: Subtotal | F16: =F14+F15 -> 63549725
A18: =MAX(A$13:A17)+1 -> 4 | C18: Additions:
A19: =MAX(A$13:A18)+1 -> 5 | C19: Inventory - Emission Allowances | D19: ES Form 2.30 | F19: =ROUND('FORM 2.30'!G32,0) -> 20854
A20: =MAX(A$13:A19)+1 -> 6 | C20: Subtotal | F20: =SUM(F19:F19) -> 20854
A22: =MAX(A$13:A21)+1 -> 7 | C22: Deductions:
A23: =MAX(A$13:A22)+1 -> 8 | C23: Accumulated Depreciation on Eligible Environmental Compliance Plant | D23: ES Form 2.10 | F23: ='FORM 2.10'!E51 -> 759460
A24: =MAX(A$13:A23)+1 -> 9 | C24: Accumulated Deferred Income Taxes on Eligible Environmental Compliance Plant | D24: ES Form 2.10 | F24: ='FORM 2.10'!I51 -> 3623383
A25: =MAX(A$13:A24)+1 -> 10 | C25: Accumulated Deferred Investment Tax Credits (ITC) on Eligible Environmental Compliance Plant | D25: ES Form 2.10 | F25: ='FORM 2.10'!H51 -> 0
A26: =MAX(A$13:A25)+1 -> 11 | C26: Subtotal | F26: =SUM(F23:F25) -> 4382843
A28: =MAX(A$13:A27)+1 -> 12 | C28: Environmental Compliance Rate Base | F28: =F16+F20-F26 -> 59187736
A31: =MAX(A$13:A30)+1 -> 13 | C31: Determination of Environmental Compliance Operating Expenses (OE)
A33: =MAX(A$13:A32)+1 -> 14 | C33: Monthly Depreciation Expense | D33: ES Form 2.10 | F33: ='FORM 2.10'!J51 -> 84642
A34: =MAX(A$13:A33)+1 -> 15 | C34: Monthly Taxes Other Than Income Taxes | D34: ES Form 2.10 | F34: ='FORM 2.10'!K51 -> 74689
A35: =MAX(A$13:A34)+1 -> 16 | C35: Monthly Amortization Expense | D35: ES Form 2.20 | F35: =-'FORM 2.20'!N184 -> 532861
A36: =MAX(A$13:A35)+1 -> 17 | C36: Monthly Emission Allowance Expense | D36: ES Form 2.30 | F36: =ROUND('FORM 2.30'!E32,0) -> 29
A37: =MAX(A$13:A36)+1 -> 18 | C37: Monthly Environmental Reagent Expense | D37: ES Form 2.50 | F37: ='FORM 2.50'!I18 -> 166451
A38: =MAX(A$13:A37)+1 -> 19 | C38: Total Environmental Compliance Operating Expense | F38: =SUM(F33:F37) -> 858672
A41: =A38+1 -> 20 | C41: Proceeds from Emission Allowance Sales (EAS)
A43: =A41+1 -> 21 | C43: SO2 Allowance Sales | F43: 0
A44: =A43+1 -> 22 | C44: NOx Allowances Sales | F44: 0
A45: =A44+1 -> 23 | C45: Total Emission Allowance Sales | F45: =SUM(F43:F44) -> 0
A48: =A45+1 -> 24 | C48: (Over) / Under Recovery
A49: =A48+1 -> 25 | C49: Adjusted Jurisdictional E(m) Authorized for Expense Month two Months Prior | F49: 1778771
A50: =A49+1 -> 26 | C50: Jurisdictional E(m) Revenue Recovered in Current Expense Month | F50: 1554574
A51: =A50+1 -> 27 | C51: (Over) / Under Recovery | F51: =F49-F50 -> 224197
C54: Note: (Over) recovery will be deducted from Jurisdictional E(m)
C55: Under recovery will be added to Jurisdictional E(m)

Sheet FORM 2.10
K1: ES FORM 2.10
B3: =Company -> DUKE ENERGY KENTUCKY, INC.
B4: =Title -> ENVIRONMENTAL SURCHARGE REPORT
B6: Plant, Accumulated Depreciation, CWIP, ITC, ADIT
B7: Depreciation Expense, Taxes Other Than Income Taxes
B9: For the Expense Month of November 2019
C12: (1) | D12: (2) | E12: (3) | F12: (4) | G12: (5) | H12: (6) | I12: (7) | J12: (8) | K12: (9)
D13: Gross | F13: Net | G13: CWIP | H13: Accumulated | I13: Accumulated
D14: Plant | E14: Accumulated | F14: Plant | G14: Excluding | H14: Deferred | I14: Deferred | K14: Monthly
B15: Project | D15: in-Service | E15: Depreciation | F15: in-Service | G15: AFUDC | H15: ITC | I15: Tax Balance | J15: Monthly | K15: Property
D16: as of | E16: as of | F16: as of | G16: as of | H16: as of | I16: as of | J16: Depreciation | K16: Tax
B17: No. | C17: Description | D17: 2019-11-01 | E17: 2019-11-01 | F17: 2019-11-01 | G17: 2019-11-01 | H17: 2019-11-01 | I17: 2019-11-01 | J17: Expense | K17: Expense
F18: (2)-(3)
B20: 1 | C20: EB020290 Lined Retention Basin West | D20: 10604187 | E20: 257457 | F20: =D20-E20 -> 10346730 | G20: 0 | H20: 0 | I20: 1211066 | J20: 21827 | K20: 12307
B22: 2 | C22: EB020745 Lined Retention Basin East | D22: 0 | E22: 0 | F22: =D22-E22 -> 0 | G22: 7619647 | H22: 0 | I22: 0 | J22: 0 | K22: 9064
B24: 3 | C24: EB020298 East Bend SW/PW Reroute | D24: 30983545 | E24: 502003 | F24: =D24-E24 -> 30481542 | G24: 0 | H24: 0 | I24: 2412317 | J24: 62815 | K24: 36258
B26: 4 | C26: EB021281 East Bend Landfill Cell 2 | D26: 0 | E26: 0 | F26: =D26-E26 -> 0 | G26: 14342346 | H26: 0 | I26: 0 | J26: 0 | K26: 17060
B28: 5 | F28: =D28-E28 -> 0
B30: 6 | F30: =D30-E30 -> 0
B32: 7 | F32: =D32-E32 -> 0
B34: 8 | F34: =D34-E34 -> 0
B36: 9 | F36: =D36-E36 -> 0
B38: 10 | F38: =D38-E38 -> 0
B40: 11 | F40: =D40-E40 -> 0
B42: 12 | F42: =D42-E42 -> 0
B44: 13 | F44: =D44-E44 -> 0
B46: 14 | F46: =D46-E46 -> 0
B48: 15 | F48: =D48-E48 -> 0
D51: =SUM(D20:D49) -> 41587732 | E51: =SUM(E20:E49) -> 759460 | F51: 40828272 | G51: 21961993 | H51: 0 | I51: 3623383 | J51: 84642 | K51: 74689

Sheet FORM 2.20
N1: ES FORM 2.20
A3: =Company -> DUKE ENERGY KENTUCKY, INC.
A4: =Title -> ENVIRONMENTAL SURCHARGE REPORT
A6: Amortization Calculation for Coal Ash ARO
A8: For the Expense Month of November 2019
G11: Recovery: | K11: Recovery: | N11: Total
A12: Line | B12: Period | D12: Cash Spend | E12: COR Credit | F12: Carrying Cost | G12: 10-Yr Amort. | H12: Ending Balance | J12: Cash Spend | K12: 2-Month Cycle | L12: Ending Balance | N12: Recovery
A13: No. | B13: (1) | D13: (2) | E13: (3) | F13: (4) | G13: (5) | H13: (6) | J13: (7) | K13: (8) | L13: (9) | N13: (10) = (5) + (8)
A14: 1 | B14: 2015 Total | C14: Actual | D14: 3858084 | E14: -856412 | F14: 20378 | G14: 0 | H14: =SUM(D14:G14) -> 3022050 | J14: 0 | K14: 0 | L14: 0 | M14: =B14 -> 2015 Total | N14: 0
A15: =A14+1 -> 2 | B15: 2016 Total | C15: Actual | D15: 4486812 | E15: -107052 | F15: 379037 | G15: 0 | H15: =SUM(D15:G15)+H14 -> 7780847 | J15: 0 | K15: 0 | M15: =B15 -> 2016 Total | N15: 0
A16: =A15+1 -> 3 | B16: Jan-17 | C16: Actual | D16: 358148 | E16: 0 | F16: 43243 | G16: 0 | H16: =SUM(D16:G16)+H15 -> 8182238 | J16: 0 | K16: =-J14 -> 0 | M16: Jan-17 | N16: 0
A17: =A16+1 -> 4 | B17: Feb-17 | C17: Actual | D17: 424021 | E17: 0 | F17: 40351 | G17: 0 | H17: 8646610 | J17: 0 | K17: =-J15 -> 0 | M17: Feb-17 | N17: 0
A18: =A17+1 -> 5 | B18: Mar-17 | C18: Actual | D18: 692184 | E18: -26763 | F18: 44724 | G18: 0 | H18: 9356755 | J18: 0 | K18: 0 | M18: Mar-17 | N18: 0
A19: 6 | B19: Apr-17 | C19: Actual | D19: 254067 | E19: 0 | F19: 50949 | G19: 0 | H19: 9661771 | J19: 0 | K19: 0 | M19: Apr-17 | N19: 0
A20: 7 | B20: May-17 | C20: Actual | D20: 608377 | E20: 0 | F20: 56141 | G20: 0 | H20: 10326289 | J20: 0 | K20: 0 | M20: May-17 | N20: 0
A21: 8 | B21: Jun-17 | C21: Actual | D21: 265619 | E21: -26763 | F21: 53472 | G21: 0 | H21: 10618617 | J21: 0 | K21: 0 | M21: Jun-17 | N21: 0
A22: 9 | B22: Jul-17 | C22: Actual | D22: 220636 | E22: 0 | F22: 51558 | G22: 0 | H22: 10890811 | J22: 0 | K22: 0 | M22: Jul-17 | N22: 0
A23: 10 | B23: Aug-17 | C23: Actual | D23: 272053 | E23: 0 | F23: 47731 | G23: 0 | H23: 11210595 | J23: 0 | K23: 0 | M23: Aug-17 | N23: 0
A24: 11 | B24: Sep-17 | C24: Actual | D24: 233743 | E24: -26763 | F24: 44389 | G24: 0 | H24: 11461964 | J24: 0 | K24: 0 | M24: Sep-17 | N24: 0
A25: 12 | B25: Oct-17 | C25: Actual | D25: 444793 | E25: 0 | F25: 60670 | G25: 0 | H25: 11967427 | J25: 0 | K25: 0 | M25: Oct-17 | N25: 0
A26: 13 | B26: Nov-17 | C26: Actual | D26: 525770 | E26: 0 | F26: 68573 | G26: 0 | H26: 12561770 | J26: 0 | K26: 0 | M26: Nov-17 | N26: 0
A27: 14 | B27: Dec-17 | C27: Actual | D27: 2482493 | E27: -26763 | F27: 82850 | G27: 0 | H27: 15100350 | J27: 0 | K27: 0 | M27: Dec-17 | N27: 0
A28: 15 | B28: Jan-18 | C28: Actual | D28: 510525 | E28: 0 | F28: 91185 | G28: 0 | H28: 15702060 | J28: 0 | K28: 0 | M28: Jan-18 | N28: 0
A29: 16 | B29: Feb-18 | C29: Actual | D29: 89648 | E29: 0 | F29: 91534 | G29: 0 | H29: 15883242 | J29: 0 | K29: 0 | M29: Feb-18 | N29: 0
A30: 17 | B30: Mar-18 | C30: Actual | D30: 396977 | E30: -26763 | F30: 93696 | G30: 0 | H30: 16347152 | J30: 0 | K30: 0 | M30: Mar-18 | N30: 0
A31: 18 | B31: Apr-18 | C31: Actual | D31: 132294 | E31: 0 | F31: 111722 | G31: 0 | H31: 16591168 | J31: 173000 | K31: 0 | L31: =L30+J31+K31 -> 173000 | M31: Apr-18 | N31: 0
A32: 19 | B32: May-18 | C32: Actual | E32: 0 | F32: 112480 | G32: 0 | H32: 16703648 | J32: 100234 | K32: 0 | L32: =L31+J32+K32 -> 273234 | M32: May-18 | N32: 0
A33: 20 | B33: Jun-18 | C33: Actual | E33: 0 | F33: 111870 | G33: -202486 | H33: 16613032 | J33: 150901 | K33: -173000 | L33: 251135 | M33: Jun-18 | N33: =K33+G33 -> -375486
A34: 21 | B34: Jul-18 | C34: Actual | E34: 0 | F34: 111255 | G34: -202486 | H34: 16521801 | J34: 196585 | K34: -100234 | L34: 347486 | M34: Jul-18 | N34: =K34+G34 -> -302720
A35: 22 | B35: Aug-18 | C35: Actual | E35: 0 | F35: 110637 | G35: -202486 | H35: 16429952 | J35: 321815 | K35: -150901 | L35: 518400 | M35: Aug-18 | N35: -353387
A36: 23 | B36: Sep-18 | C36: Actual | E36: 0 | F36: 110014 | G36: -202486 | H36: 16337480 | J36: 275135 | K36: -196585 | L36: 596950 | M36: Sep-18 | N36: -399071
A37: 24 | B37: Oct-18 | C37: Actual | E37: 0 | F37: 109387 | G37: -202486 | H37: 16244381 | J37: 69886 | K37: -321815 | L37: 345021 | M37: Oct-18 | N37: -524301
A38: 25 | B38: Nov-18 | C38: Actual | E38: 0 | F38: 108756 | G38: -202486 | H38: 16150651 | J38: 238428 | K38: -275135 | L38: 308314 | M38: Nov-18 | N38: -477621
A39: 26 | B39: Dec-18 | C39: Actual | E39: 0 | F39: 108121 | G39: -202486 | H39: 16056286 | J39: 263037 | K39: -69886 | L39: 501465 | M39: Dec-18 | N39: -272372
A40: 27 | B40: Jan-19 | C40: Actual | E40: 0 | F40: 107481 | G40: -202486 | H40: 15961281 | J40: 177996 | K40: -238428 | L40: 441033 | M40: Jan-19 | N40: -440914
A41: 28 | B41: Feb-19 | C41: Actual | E41: 0 | F41: 106837 | G41: -202486 | H41: 15865632 | J41: 150851 | K41: -263037 | L41: 328847 | M41: Feb-19 | N41: -465523
A42: 29 | B42: Mar-19 | C42: Actual | E42: 0 | F42: 106188 | G42: -202486 | H42: 15769334 | J42: 408609 | K42: -177996 | L42: 559460 | M42: Mar-19 | N42: -380482
A43: 30 | B43: Apr-19 | C43: Actual | E43: 0 | F43: 105535 | G43: -202486 | H43: 15672383 | J43: 1588547 | K43: -150851 | L43: 1997156 | M43: Apr-19 | N43: -353337
A44: 31 | B44: May-19 | C44: Actual | E44: 0 | F44: 104878 | G44: -202486 | H44: 15574775 | J44: 1641055 | K44: -408609 | L44: 3229602 | M44: May-19 | N44: -611095
A45: 32 | B45: Jun-19 | C45: Actual | E45: 0 | F45: 104216 | G45: -202486 | H45: 15476505 | J45: 1423233 | K45: -1588547 | L45: 3064288 | M45: Jun-19 | N45: -1791033
A46: 33 | B46: Jul-19 | C46: Actual | E46: 0 | F46: 103550 | G46: -202486 | H46: 15377569 | J46: 1368585 | K46: -1641055 | L46: 2791818 | M46: Jul-19 | N46: -1843541
A47: 34 | B47: Aug-19 | C47: Actual | E47: 0 | F47: 102880 | G47: -202486 | H47: 15277963 | J47: 487759 | K47: -1423233 | L47: 1856344 | M47: Aug-19 | N47: -1625719
A48: 35 | B48: Sep-19 | C48: Actual | E48: 0 | F48: 102204 | G48: -202486 | H48: 15177681 | J48: 47477 | K48: -1368585 | L48: 535236 | M48: Sep-19 | N48: -1571071
A49: 36 | B49: Oct-19 | C49: Actual | E49: 0 | F49: 101524 | G49: -202486 | H49: 15076719 | J49: -18595 | K49: -487759 | L49: 28882 | M49: Oct-19 | N49: -690245
A50: 37 | B50: Nov-19 | C50: Actual | E50: 0 | F50: 100840 | G50: -202486 | H50: 14975073 | J50: 330375 | K50: -47477 | L50: 311780 | M50: Nov-19 | N50: -249963
A51: 38 | B51: Dec-19 | C51: Actual | E51: 0 | F51: 100151 | G51: -202486 | H51: 14872738 | J51: 0 | K51: 18595 | L51: 330375 | M51: Dec-19 | N51: -183891
A52: 39 | B52: Jan-20 | C52: Actual | E52: 0 | F52: 99457 | G52: -202486 | H52: 14769709 | J52: 0 | K52: -330375 | L52: 0 | M52: Jan-20 | N52: -532861
A53: 40 | B53: Feb-20 | C53: Actual | E53: 0 | F53: 98759 | G53: -202486 | H53: 14665982 | J53: 0 | K53: 0 | L53: 0 | M53: Feb-20 | N53: -202486
A54: 41 | B54: Mar-20 | C54: Actual | E54: 0 | F54: 98055 | G54: -202486 | H54: 14561551 | J54: 0 | K54: 0 | L54: 0 | M54: Mar-20 | N54: -202486
A55: 42 | B55: Apr-20 | C55: Actual | E55: 0 | F55: 97347 | G55: -202486 | H55: 14456412 | J55: 0 | K55: 0 | L55: 0 | M55: Apr-20 | N55: -202486
A56: 43 | B56: May-20 | C56: Actual | E56: 0 | F56: 96635 | G56: -202486 | H56: 14350561 | J56: 0 | K56: 0 | L56: 0 | M56: May-20 | N56: -202486
A57: 44 | B57: Jun-20 | C57: Actual | E57: 0 | F57: 95917 | G57: -202486 | H57: 14243992 | J57: 0 | K57: 0 | L57: 0 | M57: Jun-20 | N57: -202486
A58: 45 | B58: Jul-20 | C58: Actual | E58: 0 | F58: 95194 | G58: -202486 | H58: 14136700 | J58: 0 | K58: 0 | L58: 0 | M58: Jul-20 | N58: -202486
A59: 46 | B59: Aug-20 | C59: Actual | E59: 0 | F59: 94467 | G59: -202486 | H59: 14028681 | J59: 0 | K59: 0 | L59: 0 | M59: Aug-20 | N59: -202486
A60: 47 | B60: Sep-20 | C60: Actual | E60: 0 | F60: 93735 | G60: -202486 | H60: 13919930 | J60: 0 | K60: 0 | L60: 0 | M60: Sep-20 | N60: -202486
A61: 48 | B61: Oct-20 | C61: Actual | E61: 0 | F61: 92997 | G61: -202486 | H61: 13810441 | J61: 0 | K61: 0 | L61: 0 | M61: Oct-20 | N61: -202486
A62: 49 | B62: Nov-20 | C62: Actual | E62: 0 | F62: 92255 | G62: -202486 | H62: 13700210 | J62: 0 | K62: 0 | L62: 0 | M62: Nov-20 | N62: -202486
A63: 50 | B63: Dec-20 | C63: Actual | E63: 0 | F63: 91508 | G63: -202486 | H63: 13589232 | J63: 0 | K63: 0 | L63: 0 | M63: Dec-20 | N63: -202486
N65: ES FORM 2.20
A67: =Company -> DUKE ENERGY KENTUCKY, INC.
A68: =Title -> ENVIRONMENTAL SURCHARGE REPORT
A70: Amortization Calculation for Coal Ash ARO
A72: For the Expense Month of November 2019
G75: Recovery: | K75: Recovery: | N75: Total
A76: Line | B76: Period | D76: Cash Spend | E76: COR Credit | F76: Carrying Cost | G76: 10-Yr Amort. | H76: Ending Balance | J76: Cash Spend | K76: 2-Month Cycle | L76: Ending Balance | N76: Recovery
A77: No. | B77: (1) | D77: (2) | E77: (3) | F77: (4) | G77: (5) | H77: (6) | J77: (7) | K77: (8) | L77: (9) | N77: (10) = (5) + (8)
A78: =A63+1 -> 51 | B78: Jan-21 | C78: Actual | E78: 0 | F78: 90756 | G78: -202486 | H78: =SUM(D78:G78)+H63 -> 13477502 | J78: 0 | K78: =-J62 -> 0 | L78: =L63+J78+K78 -> 0 | M78: Jan-21 | N78: -202486
A79: 52 | B79: Feb-21 | C79: Actual | E79: 0 | F79: 89998 | G79: -202486 | H79: 13365014 | J79: 0 | K79: =-J63 -> 0 | L79: 0 | M79: Feb-21 | N79: -202486
A80: 53 | B80: Mar-21 | C80: Actual | E80: 0 | F80: 89235 | G80: -202486 | H80: 13251763 | J80: 0 | K80: 0 | L80: 0 | M80: Mar-21 | N80: -202486
A81: 54 | B81: Apr-21 | C81: Actual | E81: 0 | F81: 88468 | G81: -202486 | H81: 13137745 | J81: 0 | K81: 0 | L81: 0 | M81: Apr-21 | N81: -202486
A82: 55 | B82: May-21 | C82: Actual | E82: 0 | F82: 87695 | G82: -202486 | H82: 13022954 | J82: 0 | K82: 0 | L82: 0 | M82: May-21 | N82: -202486
A83: 56 | B83: Jun-21 | C83: Actual | E83: 0 | F83: 86916 | G83: -202486 | H83: 12907384 | J83: 0 | K83: 0 | L83: 0 | M83: Jun-21 | N83: -202486
A84: 57 | B84: Jul-21 | C84: Actual | E84: 0 | F84: 86133 | G84: -202486 | H84: 12791031 | J84: 0 | K84: 0 | L84: 0 | M84: Jul-21 | N84: -202486
A85: 58 | B85: Aug-21 | C85: Actual | E85: 0 | F85: 85344 | G85: -202486 | H85: 12673889 | J85: 0 | K85: 0 | L85: 0 | M85: Aug-21 | N85: -202486
A86: 59 | B86: Sep-21 | C86: Actual | E86: 0 | F86: 84550 | G86: -202486 | H86: 12555953 | J86: 0 | K86: 0 | L86: 0 | M86: Sep-21 | N86: -202486
A87: 60 | B87: Oct-21 | C87: Actual | E87: 0 | F87: 83750 | G87: -202486 | H87: 12437217 | J87: 0 | K87: 0 | L87: 0 | M87: Oct-21 | N87: -202486
A88: 61 | B88: Nov-21 | C88: Actual | E88: 0 | F88: 82945 | G88: -202486 | H88: 12317676 | J88: 0 | K88: 0 | L88: 0 | M88: Nov-21 | N88: -202486
A89: 62 | B89: Dec-21 | C89: Actual | E89: 0 | F89: 82135 | G89: -202486 | H89: 12197325 | J89: 0 | K89: 0 | L89: 0 | M89: Dec-21 | N89: -202486
A90: 63 | B90: Jan-22 | C90: Actual | E90: 0 | F90: 81319 | G90: -202486 | H90: 12076158 | J90: 0 | K90: 0 | L90: 0 | M90: Jan-22 | N90: -202486
A91: 64 | B91: Feb-22 | C91: Actual | E91: 0 | F91: 80498 | G91: -202486 | H91: 11954170 | J91: 0 | K91: 0 | L91: 0 | M91: Feb-22 | N91: -202486
A92: 65 | B92: Mar-22 | C92: Actual | E92: 0 | F92: 79671 | G92: -202486 | H92: 11831355 | J92: 0 | K92: 0 | L92: 0 | M92: Mar-22 | N92: -202486
A93: 66 | B93: Apr-22 | C93: Actual | E93: 0 | F93: 78838 | G93: -202486 | H93: 11707707 | J93: 0 | K93: 0 | L93: 0 | M93: =B93 -> Apr-22 | N93: -202486
A94: 67 | B94: May-22 | C94: Actual | E94: 0 | F94: 78000 | G94: -202486 | H94: =SUM(D94:G94)+H93 -> 11583221 | J94: 0 | K94: 0 | L94: 0 | M94: May-22 | N94: -202486
A95: 68 | B95: Jun-22 | C95: Actual | E95: 0 | F95: 77156 | G95: -202486 | H95: 11457891 | J95: 0 | K95: =-J93 -> 0 | L95: 0 | M95: Jun-22 | N95: -202486
A96: =A95+1 -> 69 | B96: Jul-22 | C96: Actual | E96: 0 | F96: 76306 | G96: -202486 | H96: 11331711 | J96: 0 | K96: 0 | L96: 0 | M96: Jul-22 | N96: -202486
A97: 70 | B97: Aug-22 | C97: Actual | E97: 0 | F97: 75451 | G97: -202486 | H97: 11204676 | J97: 0 | K97: 0 | L97: 0 | M97: Aug-22 | N97: -202486
A98: 71 | B98: Sep-22 | C98: Actual | E98: 0 | F98: 74589 | G98: -202486 | H98: 11076779 | J98: 0 | K98: 0 | L98: 0 | M98: Sep-22 | N98: -202486
A99: 72 | B99: Oct-22 | C99: Actual | E99: 0 | F99: 73722 | G99: -202486 | H99: 10948015 | J99: 0 | K99: 0 | L99: 0 | M99: Oct-22 | N99: -202486
A100: 73 | B100: Nov-22 | C100: Actual | E100: 0 | F100: 72849 | G100: -202486 | H100: 10818378 | J100: 0 | K100: 0 | L100: 0 | M100: Nov-22 | N100: -202486
A101: 74 | B101: Dec-22 | C101: Actual | E101: 0 | F101: 71971 | G101: -202486 | H101: 10687863 | J101: 0 | K101: 0 | L101: 0 | M101: Dec-22 | N101: -202486
A102: 75 | B102: Jan-23 | C102: Actual | E102: 0 | F102: 71086 | G102: -202486 | H102: 10556463 | J102: 0 | K102: 0 | L102: 0 | M102: Jan-23 | N102: -202486
A103: 76 | B103: Feb-23 | C103: Actual | E103: 0 | F103: 70195 | G103: -202486 | H103: 10424172 | J103: 0 | K103: 0 | L103: 0 | M103: Feb-23 | N103: -202486
A104: 77 | B104: Mar-23 | C104: Actual | E104: 0 | F104: 69298 | G104: -202486 | H104: 10290984 | J104: 0 | K104: 0 | L104: 0 | M104: Mar-23 | N104: -202486
A105: 78 | B105: Apr-23 | C105: Actual | E105: 0 | F105: 68395 | G105: -202486 | H105: 10156893 | J105: 0 | K105: 0 | L105: 0 | M105: Apr-23 | N105: -202486
A106: 79 | B106: May-23 | C106: Actual | E106: 0 | F106: 67486 | G106: -202486 | H106: 10021893 | J106: 0 | K106: 0 | L106: 0 | M106: May-23 | N106: -202486
A107: 80 | B107: Jun-23 | C107: Actual | E107: 0 | F107: 66571 | G107: -202486 | H107: 9885978 | J107: 0 | K107: 0 | L107: 0 | M107: Jun-23 | N107: -202486
A108: 81 | B108: Jul-23 | C108: Actual | E108: 0 | F108: 65649 | G108: -202486 | H108: 9749141 | J108: 0 | K108: 0 | L108: 0 | M108: Jul-23 | N108: -202486
A109: 82 | B109: Aug-23 | C109: Actual | E109: 0 | F109: 64722 | G109: -202486 | H109: 9611377 | J109: 0 | K109: 0 | L109: 0 | M109: Aug-23 | N109: -202486
A110: 83 | B110: Sep-23 | C110: Actual | E110: 0 | F110: 63788 | G110: -202486 | H110: 9472679 | J110: 0 | K110: 0 | L110: =L109+J110+K110 -> 0 | M110: Sep-23 | N110: -202486
A111: 84 | B111: Oct-23 | C111: Actual | E111: 0 | F111: 62847 | G111: -202486 | H111: 9333040 | J111: 0 | K111: 0 | L111: 0 | M111: Oct-23 | N111: -202486
A112: 85 | B112: Nov-23 | C112: Actual | E112: 0 | F112: 61901 | G112: -202486 | H112: 9192455 | J112: 0 | K112: 0 | L112: 0 | M112: Nov-23 | N112: =K112+G112 -> -202486
A113: 86 | B113: Dec-23 | C113: Actual | E113: 0 | F113: 60948 | G113: -202486 | H113: 9050917 | J113: 0 | K113: 0 | L113: 0 | M113: Dec-23 | N113: -202486
A114: 87 | B114: Jan-24 | C114: Actual | E114: 0 | F114: 59988 | G114: -202486 | H114: 8908419 | J114: 0 | K114: 0 | L114: 0 | M114: Jan-24 | N114: -202486
A115: 88 | B115: Feb-24 | C115: Actual | E115: 0 | F115: 59022 | G115: -202486 | H115: 8764955 | J115: 0 | K115: 0 | L115: 0 | M115: Feb-24 | N115: -202486
A116: 89 | B116: Mar-24 | C116: Actual | E116: 0 | F116: 58049 | G116: -202486 | H116: 8620518 | J116: 0 | K116: 0 | L116: 0 | M116: Mar-24 | N116: -202486
A117: 90 | B117: Apr-24 | C117: Actual | E117: 0 | F117: 57070 | G117: -202486 | H117: 8475102 | J117: 0 | K117: 0 | L117: 0 | M117: Apr-24 | N117: -202486
A118: 91 | B118: May-24 | C118: Actual | E118: 0 | F118: 56084 | G118: -202486 | H118: 8328700 | J118: 0 | K118: 0 | L118: 0 | M118: May-24 | N118: -202486
A119: 92 | B119: Jun-24 | C119: Actual | E119: 0 | F119: 55092 | G119: -202486 | H119: 8181306 | J119: 0 | K119: 0 | L119: 0 | M119: Jun-24 | N119: -202486
A120: 93 | B120: Jul-24 | C120: Actual | E120: 0 | F120: 54093 | G120: -202486 | H120: 8032913 | J120: 0 | K120: 0 | L120: 0 | M120: Jul-24 | N120: -202486
A121: 94 | B121: Aug-24 | C121: Actual | E121: 0 | F121: 53087 | G121: -202486 | H121: 7883514 | J121: 0 | K121: 0 | L121: 0 | M121: Aug-24 | N121: -202486
A122: 95 | B122: Sep-24 | C122: Actual | E122: 0 | F122: 52074 | G122: -202486 | H122: 7733102 | J122: 0 | K122: 0 | L122: 0 | M122: Sep-24 | N122: -202486
A123: 96 | B123: Oct-24 | C123: Actual | E123: 0 | F123: 51054 | G123: -202486 | H123: 7581670 | J123: 0 | K123: 0 | L123: 0 | M123: Oct-24 | N123: -202486
A124: 97 | B124: Nov-24 | C124: Actual | E124: 0 | F124: 50027 | G124: -202486 | H124: 7429211 | J124: 0 | K124: 0 | L124: 0 | M124: Nov-24 | N124: -202486
A125: 98 | B125: Dec-24 | C125: Actual | E125: 0 | F125: 48994 | G125: -202486 | H125: 7275719 | J125: 0 | K125: 0 | L125: 0 | M125: Dec-24 | N125: -202486
A126: 99 | B126: Jan-25 | C126: Actual | E126: 0 | F126: 47953 | G126: -202486 | H126: 7121186 | J126: 0 | K126: 0 | L126: 0 | M126: Jan-25 | N126: -202486
N128: ES FORM 2.20
A130: =Company -> DUKE ENERGY KENTUCKY, INC.
A131: =Title -> ENVIRONMENTAL SURCHARGE REPORT
A133: Amortization Calculation for Coal Ash ARO
A135: For the Expense Month of November 2019
G138: Recovery: | K138: Recovery: | N138: Total
A139: Line | B139: Period | D139: Cash Spend | E139: COR Credit | F139: Carrying Cost | G139: 10-Yr Amort. | H139: Ending Balance | J139: Cash Spend | K139: 2-Month Cycle | L139: Ending Balance | N139: Recovery
A140: No. | B140: (1) | D140: (2) | E140: (3) | F140: (4) | G140: (5) | H140: (6) | J140: (7) | K140: (8) | L140: (9) | N140: (10) = (5) + (8)
A141: =A126+1 -> 100 | B141: Feb-25 | C141: Actual | E141: 0 | F141: 46906 | G141: -202486 | H141: =SUM(D141:G141)+H126 -> 6965606 | J141: 0 | K141: =-J125 -> 0 | L141: =L126+J141+K141 -> 0 | M141: Feb-25 | N141: -202486
A142: 101 | B142: Mar-25 | C142: Actual | E142: 0 | F142: 45851 | G142: -202486 | H142: 6808971 | J142: 0 | K142: =-J126 -> 0 | L142: 0 | M142: Mar-25 | N142: -202486
A143: 102 | B143: Apr-25 | C143: Actual | E143: 0 | F143: 44789 | G143: -202486 | H143: 6651274 | J143: 0 | K143: 0 | L143: 0 | M143: Apr-25 | N143: -202486
A144: 103 | B144: May-25 | C144: Actual | E144: 0 | F144: 43720 | G144: -202486 | H144: 6492508 | J144: 0 | K144: 0 | L144: 0 | M144: May-25 | N144: -202486
A145: 104 | B145: Jun-25 | C145: Actual | E145: 0 | F145: 42643 | G145: -202486 | H145: 6332665 | J145: 0 | K145: 0 | L145: 0 | M145: Jun-25 | N145: -202486
A146: 105 | B146: Jul-25 | C146: Actual | E146: 0 | F146: 41560 | G146: -202486 | H146: 6171739 | J146: 0 | K146: 0 | L146: 0 | M146: Jul-25 | N146: -202486
A147: 106 | B147: Aug-25 | C147: Actual | E147: 0 | F147: 40469 | G147: -202486 | H147: 6009722 | J147: 0 | K147: 0 | L147: 0 | M147: Aug-25 | N147: -202486
A148: 107 | B148: Sep-25 | C148: Actual | E148: 0 | F148: 39370 | G148: -202486 | H148: 5846606 | J148: 0 | K148: 0 | L148: 0 | M148: Sep-25 | N148: -202486
A149: 108 | B149: Oct-25 | C149: Actual | E149: 0 | F149: 38265 | G149: -202486 | H149: 5682385 | J149: 0 | K149: 0 | L149: 0 | M149: Oct-25 | N149: -202486
A150: 109 | B150: Nov-25 | C150: Actual | E150: 0 | F150: 37151 | G150: -202486 | H150: 5517050 | J150: 0 | K150: 0 | L150: 0 | M150: Nov-25 | N150: -202486
A151: 110 | B151: Dec-25 | C151: Actual | E151: 0 | F151: 36030 | G151: -202486 | H151: 5350594 | J151: 0 | K151: 0 | L151: 0 | M151: Dec-25 | N151: -202486
A152: 111 | B152: Jan-26 | C152: Actual | E152: 0 | F152: 34902 | G152: -202486 | H152: 5183010 | J152: 0 | K152: 0 | L152: 0 | M152: Jan-26 | N152: -202486
A153: 112 | B153: Feb-26 | C153: Actual | E153: 0 | F153: 33766 | G153: -202486 | H153: 5014290 | J153: 0 | K153: 0 | L153: 0 | M153: Feb-26 | N153: -202486
A154: 113 | B154: Mar-26 | C154: Actual | E154: 0 | F154: 32622 | G154: -202486 | H154: 4844426 | J154: 0 | K154: 0 | L154: 0 | M154: Mar-26 | N154: -202486
A155: 114 | B155: Apr-26 | C155: Actual | E155: 0 | F155: 31470 | G155: -202486 | H155: 4673410 | J155: 0 | K155: 0 | L155: 0 | M155: Apr-26 | N155: -202486
A156: 115 | B156: May-26 | C156: Actual | E156: 0 | F156: 30311 | G156: -202486 | H156: 4501235 | J156: 0 | K156: 0 | L156: 0 | M156: May-26 | N156: -202486
A157: 116 | B157: Jun-26 | C157: Actual | E157: 0 | F157: 29144 | G157: -202486 | H157: 4327893 | J157: 0 | K157: 0 | L157: 0 | M157: Jun-26 | N157: -202486
A158: 117 | B158: Jul-26 | C158: Actual | E158: 0 | F158: 27968 | G158: -202486 | H158: 4153375 | J158: 0 | K158: 0 | L158: 0 | M158: Jul-26 | N158: -202486
A159: 118 | B159: Aug-26 | C159: Actual | E159: 0 | F159: 26785 | G159: -202486 | H159: 3977674 | J159: 0 | K159: 0 | L159: 0 | M159: Aug-26 | N159: -202486
A160: 119 | B160: Sep-26 | C160: Actual | E160: 0 | F160: 25594 | G160: -202486 | H160: 3800782 | J160: 0 | K160: 0 | L160: 0 | M160: Sep-26 | N160: -202486
A161: 120 | B161: Oct-26 | C161: Actual | E161: 0 | F161: 24395 | G161: -202486 | H161: 3622691 | J161: 0 | K161: 0 | L161: 0 | M161: Oct-26 | N161: -202486
A162: 121 | B162: Nov-26 | C162: Actual | E162: 0 | F162: 23188 | G162: -202486 | H162: 3443393 | J162: 0 | K162: 0 | L162: 0 | M162: Nov-26 | N162: -202486
A163: 122 | B163: Dec-26 | C163: Actual | E163: 0 | F163: 21972 | G163: -202486 | H163: 3262879 | J163: 0 | K163: 0 | L163: 0 | M163: Dec-26 | N163: -202486
A164: 123 | B164: Jan-27 | C164: Actual | E164: 0 | F164: 20748 | G164: -202486 | H164: 3081141 | J164: 0 | K164: 0 | L164: 0 | M164: Jan-27 | N164: -202486
A165: 124 | B165: Feb-27 | C165: Actual | E165: 0 | F165: 19516 | G165: -202486 | H165: 2898171 | J165: 0 | K165: 0 | L165: 0 | M165: Feb-27 | N165: -202486
A166: 125 | B166: Mar-27 | C166: Actual | E166: 0 | F166: 18276 | G166: -202486 | H166: 2713961 | J166: 0 | K166: 0 | L166: 0 | M166: Mar-27 | N166: -202486
A167: 126 | B167: Apr-27 | C167: Actual | E167: 0 | F167: 17027 | G167: -202486 | H167: 2528502 | J167: 0 | K167: 0 | L167: 0 | M167: Apr-27 | N167: -202486
A168: 127 | B168: May-27 | C168: Actual | E168: 0 | F168: 15769 | G168: -202486 | H168: 2341785 | J168: 0 | K168: 0 | L168: 0 | M168: May-27 | N168: -202486
A169: 128 | B169: Jun-27 | C169: Actual | E169: 0 | F169: 14504 | G169: -202486 | H169: 2153803 | J169: 0 | K169: 0 | L169: 0 | M169: Jun-27 | N169: -202486
A170: 129 | B170: Jul-27 | C170: Actual | E170: 0 | F170: 13229 | G170: -202486 | H170: 1964546 | J170: 0 | K170: 0 | L170: 0 | M170: Jul-27 | N170: -202486
A171: 130 | B171: Aug-27 | C171: Actual | E171: 0 | F171: 11946 | G171: -202486 | H171: 1774006 | J171: 0 | K171: 0 | L171: 0 | M171: =B171 -> Aug-27 | N171: -202486
A172: 131 | B172: Sep-27 | C172: Actual | E172: 0 | F172: 10654 | G172: -202486 | H172: =SUM(D172:G172)+H171 -> 1582174 | J172: 0 | K172: 0 | L172: 0 | M172: Sep-27 | N172: -202486
A173: 132 | B173: Oct-27 | C173: Actual | E173: 0 | F173: 9354 | G173: -202486 | H173: 1389042 | J173: 0 | K173: =-J171 -> 0 | L173: 0 | M173: Oct-27 | N173: -202486
A174: =A173+1 -> 133 | B174: Nov-27 | C174: Actual | E174: 0 | F174: 8045 | G174: -202486 | H174: 1194601 | J174: 0 | K174: 0 | L174: 0 | M174: Nov-27 | N174: -202486
A175: 134 | B175: Dec-27 | C175: Actual | E175: 0 | F175: 6726 | G175: -202486 | H175: 998841 | J175: 0 | K175: 0 | L175: 0 | M175: Dec-27 | N175: -202486
A176: 135 | B176: Jan-28 | C176: Actual | E176: 0 | F176: 5399 | G176: -202486 | H176: 801754 | J176: 0 | K176: 0 | L176: 0 | M176: Jan-28 | N176: -202486
A177: 136 | B177: Feb-28 | C177: Actual | E177: 0 | F177: 4063 | G177: -202486 | H177: 603331 | J177: 0 | K177: 0 | L177: 0 | M177: Feb-28 | N177: -202486
A178: 137 | B178: Mar-28 | C178: Actual | E178: 0 | F178: 2718 | G178: -202486 | H178: 403563 | J178: 0 | K178: 0 | L178: 0 | M178: Mar-28 | N178: -202486
A179: 138 | B179: Apr-28 | C179: Actual | E179: 0 | F179: 1409 | G179: -202486 | H179: 202486 | J179: 0 | K179: 0 | L179: 0 | M179: Apr-28 | N179: -202486
A180: 139 | B180: May-28 | C180: Actual | E180: 0 | F180: 0 | G180: -202486 | H180: 0 | J180: 0 | K180: 0 | L180: 0 | M180: May-28 | N180: -202486
D181: =SUM(D14:D180) -> 16256244 | E181: =SUM(E14:E180) -> -1097279 | F181: =SUM(F14:F180) -> 9139355 | G181: =SUM(G14:G180) -> -24298320 | J181: =SUM(J14:J180) -> 9394913 | K181: -9394913 | N181: =SUM(N14:N180) -> -33693233
B184: Monthly Amortization Amount | N184: -532861

Sheet FORM 2.30
G1: ES FORM 2.30
B3: =Company -> DUKE ENERGY KENTUCKY, INC.
B4: =Title -> ENVIRONMENTAL SURCHARGE REPORT
B6: Inventory and Expense of Emission Allowances
B8: For the Expense Month Ending November 2019
B11: Total SO2 and NOx Emission Allowances
C12: Beginning | D12: Allocations / | G12: Ending
C13: Inventory | D13: Purchases | E13: Utilized | F13: Sold | G13: Inventory
B15: SO2 Allowances - Acid Rain Program (a)
B16: Quantity | C16: 133942 | D16: 0 | E16: 36 | F16: 0 | G16: =C16+D16-E16-F16 -> 133906
B17: Dollars | C17: 16822.73 | D17: 0 | E17: 4.68 | F17: 0 | G17: =C17+D17-E17-F17 -> 16818.05
B18: $/Allowance | C18: =IF(C16=0,0,ROUND(C17/C16,6)) -> 0.125597 | D18: =IF(D16=0,0,ROUND(D17/D16,6)) -> 0 | E18: =IF(E16=0,0,ROUND(E17/E16,6)) -> 0.13 | F18: =IF(F16=0,0,ROUND(F17/F16,6)) -> 0 | G18: =IF(G16=0,0,ROUND(G17/G16,6)) -> 0.125596
B20: NOx Allowances - Annual
B21: Quantity | C21: 6873 | D21: 0 | E21: 53 | F21: 0 | G21: =C21+D21-E21-F21 -> 6820
B22: Dollars | C22: 3354.49 | D22: 0 | E22: 25.97 | F22: 0 | G22: =C22+D22-E22-F22 -> 3328.52
B23: $/Allowance | C23: =IF(C21=0,0,ROUND(C22/C21,6)) -> 0.488068 | D23: =IF(D21=0,0,ROUND(D22/D21,6)) -> 0 | E23: =IF(E21=0,0,ROUND(E22/E21,6)) -> 0.49 | F23: =IF(F21=0,0,ROUND(F22/F21,6)) -> 0 | G23: =IF(G21=0,0,ROUND(G22/G21,6)) -> 0.488053
B25: NOx Allowances - Seasonal
B26: Quantity | C26: 448 | D26: 0 | E26: -1 | F26: 0 | G26: =C26+D26-E26-F26 -> 449
B27: Dollars | C27: 706.31 | D27: 0 | E27: -1.58 | F27: 0 | G27: =C27+D27-E27-F27 -> 707.89
B28: $/Allowance | C28: =IF(C26=0,0,ROUND(C27/C26,6)) -> 1.576585 | D28: =IF(D26=0,0,ROUND(D27/D26,6)) -> 0 | E28: =IF(E26=0,0,ROUND(E27/E26,6)) -> 1.58 | F28: =IF(F26=0,0,ROUND(F27/F26,6)) -> 0 | G28: =IF(G26=0,0,ROUND(G27/G26,6)) -> 1.576592
B30: Total Emission Allowances
B31: Quantity | C31: =C16+C21+C26 -> 141263 | D31: 0 | E31: 88 | F31: 0 | G31: 141175
B32: Dollars | C32: 20883.53 | D32: 0 | E32: =E17+E22+E27 -> 29.07 | F32: 0 | G32: 20854.46
B34: (a) Note: The SO2 Allowances exclude the CSSO2G1 Program Allowances as there is no dollar value associated with this program inventory. Thus, there is no expense booked to the ledger as a result of the program.

Sheet FORM 2.50
I1: ES FORM 2.50
A3: =Company -> DUKE ENERGY KENTUCKY, INC.
A4: =Title -> ENVIRONMENTAL SURCHARGE REPORT
A6: Environmental Reagent Expenses
A8: For the Expense Month of November 2019
A11: Line | E11: Account | G11: East Bend
A12: No. | C12: Expense Type | E12: Number | G12: Unit 2 | I12: Total
A14: 1 | C14: Ammonia | E14: 502020 | G14: 13486 | I14: =G14 -> 13486
A15: =A14+1 -> 2 | C15: Lime | E15: 502040 | G15: 143647 | I15: =G15 -> 143647
A16: =A15+1 -> 3 | C16: Hydrated Lime | E16: 502040 | G16: 9318 | I16: 9318
A18: 4 | C18: Total | G18: =SUM(G14:G16) -> 166451 | I18: =SUM(I14:I16) -> 166451

Sheet FORM 3.00
H1: ES FORM 3.00
B3: =Company -> DUKE ENERGY KENTUCKY, INC.
B4: =Title -> ENVIRONMENTAL SURCHARGE REPORT
B6: Monthly Average Revenue Computation of R(m) for Residential and Non-Residential Customers
B8: For the Expense Month of November 2019
B11: Residential - Kentucky Jurisdictional Revenues
B12: (1) | C12: (2) | D12: (3) | E12: (4) | F12: (5) | G12: (6)
G13: Total
F14: Environmental | G14: Excluding
C15: Total | F15: Surcharge | G15: Environmental
B16: Month | C16: Revenues | F16: Revenues | G16: Surcharge
G17: (2) - (5)
B19: 2018-12-01 | C19: 12609557 | F19: 886457 | G19: =C19-F19 -> 11723100
B20: 2019-01-01 | C20: 14245202 | F20: 1111248 | G20: 13133954
B21: 2019-02-01 | C21: 13898083 | F21: 1131936 | G21: 12766147
B22: 2019-03-01 | C22: 11471832 | F22: 773284 | G22: 10698548
B23: 2019-04-01 | C23: 9398011 | F23: 700129 | G23: 8697882
B24: 2019-05-01 | C24: 8627659 | F24: 737098 | G24: 7890561
B25: 2019-06-01 | C25: 11487026 | F25: 1138649 | G25: 10348377
B26: 2019-07-01 | C26: 13524273 | F26: 734203 | G26: 12790070
B27: 2019-08-01 | C27: 12261118 | F27: 613630 | G27: 11647488
B28: 2019-09-01 | C28: 12108304 | F28: 540297 | G28: 11568007
B29: 2019-10-01 | C29: 10517865 | F29: 833088 | G29: 9684777
B30: 2019-11-01 | C30: 8743548 | F30: 534343 | G30: 8209205
B32: Average Monthly Residential Revenues, Excluding Environmental Surcharge, for 12 Months Ending Current Expense Month | G32: =ROUND(AVERAGE(G19:G30),0) -> 10763176
B34: Average Total Kentucky Revenues, Excluding Environmental Surcharge, for 12 Months Ending Current Expense Month | G34: =G32+G60 -> 27274326
B36: Residential Revenues as a Percentage of Total Revenues for 12 Months Ending with the Current Expense Month | G36: =IF(G34=0,0,ROUND(G32/G34,4)) -> 0.3946
B39: Non-Residential - Kentucky Jurisdictional Revenues
B40: (1) | C40: (2) | D40: (3) | E40: (4) | F40: (5) | G40: (6) | H40: (7)
G41: Total
D42: Base Rate | E42: Fuel | F42: Environmental | G42: Excluding | H42: Total
C43: Total | D43: Fuel | E43: Clause | F43: Surcharge | G43: Environmental | H43: Non-Fuel
B44: Month | C44: Revenues | D44: Component | E44: Revenues | F44: Revenues | G44: Surcharge | H44: Revenue
G45: (2) - (5) | H45: (6) - (3) - (4)
B47: 2018-12-01 | C47: 17324338 | D47: 5092973 | E47: 181676 | F47: 1287638 | G47: =C47-F47 -> 16036700 | H47: =G47-D47-E47 -> 10762051
B48: 2019-01-01 | C48: 18290878 | D48: 5097006 | E48: 922607 | F48: 1453249 | G48: 16837629 | H48: =G48-D48-E48 -> 10818016
B49: 2019-02-01 | C49: 17744446 | D49: 4907453 | E49: 510438 | F49: 1519027 | G49: 16225419 | H49: 10807528
B50: 2019-03-01 | C50: 16102997 | D50: 4721932 | E50: -36039 | F50: 1173249 | G50: 14929748 | H50: 10243855
B51: 2019-04-01 | C51: 16381370 | D51: 4678873 | E51: 265615 | F51: 1294456 | G51: 15086914 | H51: 10142426
B52: 2019-05-01 | C52: 16730729 | D52: 4667996 | E52: 90852 | F52: 1527972 | G52: 15202757 | H52: 10443909
B53: 2019-06-01 | C53: 19945443 | D53: 5235309 | E53: 1537295 | F53: 1968000 | G53: 17977443 | H53: 11204839
B54: 2019-07-01 | C54: 19726822 | D54: 5582336 | E54: 582168 | F54: 1125025 | G54: 18601797 | H54: 12437293
B55: 2019-08-01 | C55: 17808671 | D55: 5629529 | E55: -777050 | F55: 969080 | G55: 16839591 | H55: 11987112
B56: 2019-09-01 | C56: 18431519 | D56: 5357488 | E56: 214486 | F56: 842610 | G56: 17588909 | H56: 12016935
B57: 2019-10-01 | C57: 18843454 | D57: 5442045 | E57: 54598 | F57: 1494804 | G57: 17348650 | H57: 11852007
B58: 2019-11-01 | C58: 16478475 | D58: 4862659 | E58: 367980 | F58: 1020231 | G58: 15458244 | H58: 10227605
B60: Average Monthly Non-Residential Revenues, Excluding Environmental Surcharge, for 12 Months Ending Current Expense Month | G60: =ROUND(AVERAGE(G47:G58),0) -> 16511150 | H60: =ROUND(AVERAGE(H47:H58),0) -> 11078631
B62: Average Total Kentucky Revenues, Excluding Environmental Surcharge, for 12 Months Ending Current Expense Month | G62: =G32+G60 -> 27274326
B64: Non-Residential Revenues as a Percentage of Total Revenues for 12 Months Ending with the Current Expense Month | G64: =IF(G62=0,0,ROUND(G60/G62,4)) -> 0.6054
